fUSD/lending_fUSD_20250611
["ID","MTS","AMOUNT","RATE_DAILY","PERIOD"]
[365322915,1749600018505,330.98,0.000199,31]
[365322916,1749600018573,330.98,0.000199,31]
[365322917,1749600018636,330.98,0.000199,31]
[365322918,1749600018937,330.98,0.000199,31]
[365322919,1749600018998,330.98,0.000199,31]
[365322920,1749600019059,330.98,0.000199,31]
[365322921,1749600019120,330.98,0.000199,31]
[365322922,1749600019441,330.98,0.000199,31]
[365322923,1749600019510,330.98,0.000199,31]
[365322924,1749600019570,330.98,0.000199,31]
[365322925,1749600019628,330.98,0.000199,31]
[365322926,1749600019687,330.98,0.000199,31]
[365322927,1749600019754,330.98,0.000199,31]
[365322928,1749600019823,330.98,0.000199,31]
[365322929,1749600019881,330.98,0.000199,31]
[365322930,1749600019936,330.98,0.000199,31]
[365322931,1749600031157,150.0,0.00023192,120]
[365322932,1749600074861,1000.0,0.00024658,120]
[365322934,1749600270759,150.0,0.0002405,120]
[365322936,1749600345095,-642.60668237,0.00016164,2]
[365322937,1749600345119,-300.0,0.00016436,2]
[365322938,1749600345146,-144.3213877,0.00016436,2]
[365322939,1749600435095,-1055.6786123,0.00016436,2]
[365322940,1749600435116,-300.0,0.00016436,2]
[365322941,1749600435138,-300.0,0.00016436,2]
[365322942,1749600435159,-5360.0,0.00016437,2]
[365322943,1749600435180,-219.68386826,0.00016437,2]
[365322944,1749600435202,-326.47857902,0.00016437,2]
[365322945,1749600435225,-256.80443838,0.00016437,2]
[365322946,1749600435245,-550.0,0.00016437,2]
[365322947,1749600435265,-240.95575624,0.00016438,2]
[365322948,1749600435288,-490.0,0.00016438,2]
[365322949,1749600435308,-490.0,0.00016438,2]
[365322950,1749600435329,-490.0,0.00016438,2]
[365322951,1749600435349,-490.0,0.00016438,2]
[365322952,1749600435370,-490.0,0.00016438,2]
[365322953,1749600435390,-490.0,0.00016438,2]
[365322954,1749600435412,-490.0,0.00016438,2]
[365322955,1749600435433,-490.0,0.00016438,2]
[365322956,1749600435454,-424.16601608,0.00016438,2]
[365322957,1749600436137,-101.9141516,0.00016438,2]
[365322958,1749600436159,-490.0,0.00016438,2]
[365322959,1749600436180,-490.0,0.00016438,2]
[365322960,1749600436201,-490.0,0.00016438,2]
[365322961,1749600436224,-490.0,0.00016438,2]
[365322962,1749600436245,-490.0,0.00016438,2]
[365322963,1749600436266,-490.0,0.00016438,2]
[365322964,1749600436291,-490.0,0.00016438,2]
[365322965,1749600436312,-490.0,0.00016438,2]
[365322966,1749600436335,-490.0,0.00016438,2]
[365322967,1749600436356,-490.0,0.00016438,2]
[365322968,1749600436378,-360.0,0.00016438,2]
[365322969,1749600436402,-490.0,0.00016438,2]
[365322970,1749600436423,-187.7366888,0.00016438,2]
[365322971,1749600437082,-302.2633112,0.00016438,2]
[365322972,1749600437103,-206.37805783,0.00016438,2]
[365322973,1749600441090,-273.62194217,0.00016438,2]
[365322974,1749600441112,-172.94930438,0.00016438,2]
[365322975,1749600441223,-228.09423432,0.00016438,2]
[365322976,1749600450776,150.0,0.0002395,120]
[365322979,1749600545118,-570.05855021,0.00016164,2]
[365322980,1749600630749,278.05,0.000199,31]
[365322981,1749600630812,278.05,0.000199,31]
[365322982,1749600630875,278.05,0.000199,31]
[365322983,1749600630944,278.05,0.000199,31]
[365322984,1749600631002,278.05,0.000199,31]
[365322985,1749600631059,278.05,0.000199,31]
[365322986,1749600631122,278.05,0.000199,31]
[365322987,1749600631185,278.05,0.000199,31]
[365322988,1749600631247,278.05,0.000199,31]
[365322989,1749600631304,278.05,0.000199,31]
[365322990,1749600631374,278.05,0.000199,31]
[365322991,1749600631444,278.05,0.000199,31]
[365322992,1749600631583,278.05,0.000199,31]
[365322993,1749600631655,278.05,0.000199,31]
[365322994,1749600631725,278.05,0.000199,31]
[365322995,1749600631786,278.05,0.000199,31]
[365323000,1749600632115,-1164.0,0.00016437,2]
[365323001,1749600632125,-88.9564613,0.00016438,2]
[365323002,1749600632136,-365.7435387,0.00016438,2]
[365323003,1749600632148,-114.2564613,0.00016438,2]
[365323004,1749600632158,-480.0,0.00016438,2]
[365323005,1749600632167,-480.0,0.00016438,2]
[365323006,1749600632177,-480.0,0.00016438,2]
[365323007,1749600632186,-480.0,0.00016438,2]
[365323008,1749600632195,-205.76149781,0.00016438,2]
[365323009,1749600632207,-274.23850219,0.00016438,2]
[365323010,1749600632216,-480.0,0.00016438,2]
[365323011,1749600632225,-131.76149781,0.00016438,2]
[365323012,1749600632458,-348.23850219,0.00016438,2]
[365323013,1749600632468,-103.19259648,0.00016438,2]
[365323652,1749600639424,-342.06034936,0.00016438,2]
[365323654,1749600639433,-476.64,0.00016438,2]
[365323656,1749600639442,-490.0,0.00016438,2]
[365323658,1749600639451,-490.0,0.00016438,2]
[365323660,1749600639461,-490.0,0.00016438,2]
[365323662,1749600639470,-490.0,0.00016438,2]
[365323664,1749600639479,-490.0,0.00016438,2]
[365323666,1749600639488,-490.0,0.00016438,2]
[365323668,1749600639498,-490.0,0.00016438,2]
[365323670,1749600639507,-490.0,0.00016438,2]
[365323672,1749600639516,-490.0,0.00016438,2]
[365323674,1749600639526,-490.0,0.00016438,2]
[365323676,1749600639536,-490.0,0.00016438,2]
[365323678,1749600639546,-490.0,0.00016438,2]
[365323680,1749600639555,-490.0,0.00016438,2]
[365323682,1749600639564,-490.0,0.00016438,2]
[365323684,1749600639574,-490.0,0.00016438,2]
[365323685,1749600639583,-490.0,0.00016438,2]
[365323687,1749600639592,-490.0,0.00016438,2]
[365323689,1749600639602,-490.0,0.00016438,2]
[365323691,1749600639611,-490.0,0.00016438,2]
[365323693,1749600639621,-490.0,0.00016438,2]
[365323695,1749600639630,-490.0,0.00016438,2]
[365323698,1749600639644,-633.17,0.00016438,2]
[365323700,1749600639654,-490.0,0.00016438,2]
[365323702,1749600639664,-595.66,0.00016438,2]
[365323703,1749600639674,-480.0,0.00016438,2]
[365323705,1749600639684,-480.0,0.00016438,2]
[365323707,1749600639693,-490.0,0.00016438,2]
[365323709,1749600639703,-490.0,0.00016438,2]
[365323711,1749600639713,-480.0,0.00016438,2]
[365323713,1749600639723,-490.0,0.00016438,2]
[365323715,1749600639733,-460.0,0.00016438,2]
[365323717,1749600639742,-490.0,0.00016438,2]
[365323719,1749600639752,-490.0,0.00016438,2]
[365323721,1749600639761,-505.2,0.00016438,2]
[365323723,1749600639771,-180.0,0.00016438,2]
[365323725,1749600639781,-490.0,0.00016438,2]
[365323727,1749600639790,-490.0,0.00016438,2]
[365323730,1749600639800,-490.0,0.00016438,2]
[365323732,1749600639810,-490.0,0.00016438,2]
[365323734,1749600639819,-490.0,0.00016438,2]
[365323736,1749600639829,-634.06,0.00016438,2]
[365323738,1749600639839,-490.0,0.00016438,2]
[365323740,1749600639848,-490.0,0.00016438,2]
[365323742,1749600639858,-490.0,0.00016438,2]
[365323744,1749600639867,-10000.0,0.00016438,7]
[365323746,1749600639877,-420.0,0.00016438,2]
[365323748,1749600639888,-490.0,0.00016438,2]
[365323750,1749600639897,-490.0,0.00016438,2]
[365323752,1749600639907,-490.0,0.00016438,2]
[365323754,1749600639917,-490.0,0.00016438,2]
[365323756,1749600639927,-490.0,0.00016438,2]
[365323758,1749600639936,-490.0,0.00016438,2]
[365323760,1749600639945,-490.0,0.00016438,2]
[365323762,1749600639955,-490.0,0.00016438,2]
[365323764,1749600639964,-490.0,0.00016438,2]
[365323766,1749600639974,-490.0,0.00016438,2]
[365323768,1749600639983,-490.0,0.00016438,2]
[365323770,1749600639993,-490.0,0.00016438,2]
[365323772,1749600640002,-490.0,0.00016438,2]
[365323774,1749600640011,-490.0,0.00016438,2]
[365323776,1749600640021,-490.0,0.00016438,2]
[365323778,1749600640030,-182.84282547,0.00016438,2]
[365323780,1749600640039,-370.0,0.00016438,2]
[365323782,1749600640048,-470.0,0.00016438,2]
[365323784,1749600640058,-490.0,0.00016438,2]
[365323786,1749600640067,-490.0,0.00016438,2]
[365323787,1749600640076,-370.0,0.00016438,2]
[365323788,1749600640086,-594.70972568,0.00016438,2]
[365323789,1749600640095,-490.0,0.00016438,2]
[365323790,1749600640105,-490.0,0.00016438,2]
[365323791,1749600640114,-490.0,0.00016438,2]
[365323792,1749600640125,-490.0,0.00016438,2]
[365323793,1749600640136,-355.26301091,0.00016438,2]
[365323794,1749600640146,-490.0,0.00016438,2]
[365323796,1749600640156,-188.12717507,0.00016438,2]
[365323797,1749600640166,-490.0,0.00016438,2]
[365323800,1749600640176,-480.0,0.00016438,2]
[365323803,1749600640186,-500.0,0.00016438,2]
[365323804,1749600640196,-480.0,0.00016438,2]
[365323807,1749600640205,-490.0,0.00016438,2]
[365323808,1749600640215,-500.0,0.00016438,2]
[365323810,1749600640224,-490.0,0.00016438,2]
[365323812,1749600640234,-500.0,0.00016438,2]
[365323814,1749600640243,-490.0,0.00016438,2]
[365323816,1749600640252,-500.0,0.00016438,2]
[365323819,1749600640262,-490.0,0.00016438,2]
[365323821,1749600640272,-490.0,0.00016438,2]
[365323822,1749600640281,-490.0,0.00016438,2]
[365323824,1749600640291,-490.0,0.00016438,2]
[365323827,1749600640300,-517.92,0.00016438,2]
[365323828,1749600640310,-360.0,0.00016438,2]
[365323831,1749600640319,-490.0,0.00016438,2]
[365323833,1749600640329,-490.0,0.00016438,2]
[365323834,1749600640339,-490.0,0.00016602,2]
[365323837,1749600640353,-635.4,0.00016602,2]
[365323838,1749600640362,-192.8,0.00016602,2]
[365323841,1749600640372,-490.0,0.00016602,2]
[365323843,1749600640382,-490.0,0.00016602,2]
[365323844,1749600640393,-470.0,0.00016602,2]
[365323846,1749600640403,-470.0,0.00016602,2]
[365323848,1749600640411,-470.0,0.00016602,2]
[365323850,1749600640422,-490.0,0.00016602,2]
[365323852,1749600640431,-470.0,0.00016602,2]
[365323854,1749600640441,-470.0,0.00016602,2]
[365323856,1749600640450,-470.0,0.00016602,2]
[365323858,1749600640460,-470.0,0.00016602,2]
[365323860,1749600640469,-608.56,0.00016602,2]
[365323862,1749600640479,-490.0,0.00016602,2]
[365323864,1749600640488,-470.0,0.00016602,2]
[365323866,1749600640497,-470.0,0.00016602,2]
[365323869,1749600640508,-470.0,0.00016602,2]
[365323871,1749600640517,-470.0,0.00016602,2]
[365323873,1749600640527,-490.0,0.00016602,2]
[365323874,1749600640535,-470.0,0.00016602,2]
[365323877,1749600640545,-490.0,0.00016602,2]
[365323879,1749600640555,-470.0,0.00016602,2]
[365323881,1749600640565,-503.06,0.00016602,2]
[365323883,1749600640575,-470.0,0.00016602,2]
[365323885,1749600640585,-232.96,0.00016602,2]
[365323887,1749600640594,-490.0,0.00016602,2]
[365323889,1749600640603,-490.0,0.00016602,2]
[365323891,1749600640612,-490.0,0.00016602,2]
[365323893,1749600640622,-490.0,0.00016602,2]
[365323895,1749600640631,-490.0,0.00016602,2]
[365323896,1749600640643,-490.0,0.00016602,2]
[365323898,1749600640653,-634.06,0.00016602,2]
[365323901,1749600640663,-263.1965451,0.00016602,2]
[365323903,1749600640672,-490.0,0.00016602,2]
[365323905,1749600640682,-490.0,0.00016602,2]
[365323907,1749600640692,-154.43,0.00016602,2]
[365323909,1749600640702,-490.0,0.00016602,2]
[365323911,1749600640712,-490.0,0.00016602,2]
[365323913,1749600640723,-490.0,0.00016602,2]
[365323915,1749600640732,-490.0,0.00016602,2]
[365323917,1749600640742,-490.0,0.00016602,2]
[365323919,1749600640751,-490.0,0.00016602,2]
[365323921,1749600640761,-340.0,0.00016602,2]
[365323923,1749600640771,-570.4,0.00016602,2]
[365323925,1749600640780,-490.0,0.00016602,2]
[365323927,1749600640790,-340.0,0.00016602,2]
[365323929,1749600640800,-490.0,0.00016602,2]
[365323931,1749600640809,-340.0,0.00016602,2]
[365323933,1749600640820,-490.0,0.00016602,2]
[365323935,1749600640830,-490.0,0.00016602,2]
[365323937,1749600640840,-490.0,0.00016602,2]
[365323939,1749600640849,-182.73,0.00016602,2]
[365323941,1749600640859,-490.0,0.00016602,2]
[365323943,1749600640868,-342.06,0.00016602,2]
[365323945,1749600640877,-490.0,0.00016602,2]
[365323947,1749600640889,-490.0,0.00016602,2]
[365323949,1749600640898,-490.0,0.00016602,2]
[365323951,1749600640907,-490.0,0.00016602,2]
[365323953,1749600640917,-151.0,0.00016767,2]
[365323955,1749600640927,-151.0,0.00016767,2]
[365323957,1749600640936,-151.0,0.00016767,2]
[365323959,1749600640946,-360.665013,0.00016767,2]
[365323961,1749600640956,-151.0,0.00016767,2]
[365323963,1749600640965,-360.665013,0.00016767,2]
[365323965,1749600640975,-293.312488,0.00016767,2]
[365323967,1749600640984,-460.0,0.00016767,2]
[365323969,1749600640993,-570.42578427,0.00016767,2]
[365323971,1749600641002,-490.0,0.00016767,2]
[365323973,1749600641011,-490.0,0.00016767,2]
[365323975,1749600641021,-564.5,0.00016767,2]
[365323977,1749600641030,-490.0,0.00016767,2]
[365323979,1749600641039,-490.0,0.00016767,2]
[365323981,1749600641049,-490.0,0.00016767,2]
[365323983,1749600641058,-490.0,0.00016767,2]
[365323985,1749600641067,-490.0,0.00016767,2]
[365323987,1749600641076,-345.02,0.00016767,2]
[365323988,1749600641086,-490.0,0.00016767,2]
[365323990,1749600641095,-490.0,0.00016767,2]
[365323992,1749600641104,-634.06,0.00016767,2]
[365323994,1749600641113,-460.0,0.00016767,2]
[365323996,1749600641123,-330.0,0.00016767,2]
[365323998,1749600641132,-330.0,0.00016767,2]
[365324001,1749600641143,-330.0,0.00016767,2]
[365324003,1749600641153,-454.74,0.00016767,2]
[365324005,1749600641163,-472.41921846,0.00016767,2]
[365324007,1749600641172,-490.0,0.00016767,2]
[365324009,1749600641181,-490.0,0.00016767,2]
[365324011,1749600641189,-490.0,0.00016767,2]
[365324013,1749600641199,-490.0,0.00016767,2]
[365324015,1749600641208,-201.54,0.00016767,2]
[365324017,1749600641218,-450.0,0.00016767,2]
[365324019,1749600641228,-450.0,0.00016767,2]
[365324021,1749600641237,-490.0,0.00016767,2]
[365324023,1749600641247,-490.0,0.00016767,2]
[365324025,1749600641257,-490.0,0.00016767,2]
[365324027,1749600641267,-490.0,0.00016767,2]
[365324029,1749600641277,-490.0,0.00016767,2]
[365324031,1749600641286,-210.97656671,0.000169,2]
[365324033,1749600641296,-151.99608767,0.0001693,2]
[365324035,1749600641306,-231.80359995,0.0001693,2]
[365324037,1749600641316,-240.42586063,0.0001693,2]
[365324039,1749600641325,-151.0,0.00016931,2]
[365324041,1749600641336,-360.665013,0.00016931,2]
[365324043,1749600641349,-360.665013,0.00016931,2]
[365324045,1749600641358,-176.8,0.00016931,2]
[365324047,1749600641368,-354.36,0.00016931,2]
[365324049,1749600641378,-153.56,0.00016931,2]
[365324052,1749600641390,-613.49,0.00016931,2]
[365324054,1749600641400,-639.0988328,0.00016931,2]
[365324056,1749600641409,-490.0,0.00016931,2]
[365324058,1749600641418,-490.0,0.00016931,2]
[365324060,1749600641430,-327.31,0.00016931,2]
[365324062,1749600641440,-603.61,0.00016931,2]
[365324064,1749600641450,-634.06,0.00016931,2]
[365324066,1749600641459,-440.0,0.00016931,2]
[365324068,1749600641468,-490.0,0.00016931,2]
[365324070,1749600641478,-490.0,0.00016931,2]
[365324072,1749600641489,-490.0,0.00016931,2]
[365324074,1749600641499,-490.0,0.00016931,2]
[365324076,1749600641509,-450.0,0.00016931,2]
[365324078,1749600641518,-450.0,0.00016931,2]
[365324080,1749600641528,-189.72740352,0.00016931,2]
[365324082,1749600641537,-450.0,0.00016931,2]
[365324084,1749600641547,-151.0,0.00017095,2]
[365324086,1749600641556,-151.0,0.00017095,2]
[365324087,1749600641565,-151.0,0.00017095,2]
[365324089,1749600641575,-360.665013,0.00017095,2]
[365324092,1749600641584,-360.665013,0.00017095,2]
[365324093,1749600641594,-359.46444842,0.00017095,2]
[365324138,1749600642095,-130.53555158,0.00017095,2]
[365324140,1749600642104,-490.0,0.00017095,2]
[365324142,1749600642114,-634.06,0.00017095,2]
[365324144,1749600642123,-184.71192205,0.00017095,2]
[365324147,1749600642139,-305.28807795,0.00017095,2]
[365324149,1749600642148,-490.0,0.00017095,2]
[365324151,1749600642158,-490.0,0.00017095,2]
[365324153,1749600642167,-490.0,0.00017095,2]
[365324154,1749600642177,-200.0,0.00017103,2]
[365324156,1749600642186,-151.0,0.0001726,2]
[365324159,1749600642196,-566.32805469,0.0001726,2]
[365324161,1749600642206,-631.06,0.0001726,2]
[365324162,1749600642216,-280.78442936,0.0001726,2]
[365324168,1749600642254,-353.27557064,0.0001726,2]
[365324170,1749600642264,-261.8169298,0.0001726,2]
[365324172,1749600642277,-311.77381994,0.0001726,2]
[365324174,1749600642287,-490.0,0.0001726,2]
[365324176,1749600642296,-490.0,0.0001726,2]
[365324178,1749600642305,-358.92618006,0.0001726,2]
[365324180,1749600642316,-271.65381994,0.0001726,2]
[365324182,1749600642326,-210.97656669,0.00017275,2]
[365324184,1749600642336,-666.0,0.00017309,2]
[365324186,1749600642347,-360.665013,0.00017318,2]
[365324187,1749600642357,-360.665013,0.00017318,2]
[365324189,1749600642367,-634.06,0.00017424,2]
[365324191,1749600642376,-199.49013547,0.00017424,2]
[365324194,1749600642390,-290.50986453,0.00017424,2]
[365324196,1749600642400,-490.0,0.00017424,2]
[365324198,1749600642409,-151.0,0.00017589,2]
[365324200,1749600642419,-360.665013,0.00017589,2]
[365324202,1749600642429,-360.665013,0.00017589,2]
[365324204,1749600642439,-634.06,0.00017589,2]
[365324206,1749600642448,-490.0,0.00017589,2]
[365324208,1749600642456,-430.05,0.00017589,2]
[365324210,1749600642466,-1000.0,0.00017608,2]
[365324212,1749600642475,-150.0,0.00017615,7]
[365324214,1749600642485,-210.97656669,0.0001765,2]
[365324215,1749600642494,-634.06,0.00017753,2]
[365324217,1749600642503,-490.0,0.00017753,2]
[365324219,1749600642512,-833.29909032,0.00017761,2]
[365324221,1749600642522,-500.0,0.00017808,2]
[365324223,1749600642532,-500.0,0.00017808,2]
[365324225,1749600642541,-254.90938727,0.00017808,2]
[365324227,1749600642550,-192.84,0.00017835,2]
[365324229,1749600642560,-634.06,0.00017917,2]
[365324231,1749600642569,-490.0,0.00017917,2]
[365324233,1749600642578,-420.0,0.00017962,2]
[365324235,1749600642588,-360.665013,0.00017963,2]
[365324237,1749600642597,-360.665013,0.00017963,2]
[365324239,1749600642607,-200.0,0.00017978,3]
[365324241,1749600642618,-8131.86,0.00017993,2]
[365324243,1749600642628,-231.4411256,0.00018,7]
[365324245,1749600642640,-210.97656669,0.00018025,2]
[365324247,1749600642650,-634.06,0.00018082,2]
[365324249,1749600642660,-490.0,0.00018082,2]
[365324251,1749600642671,-634.06,0.00018246,2]
[365324253,1749600642681,-490.0,0.00018246,2]
[365324255,1749600642691,-210.97656669,0.000184,2]
[365324257,1749600642700,-360.665013,0.0001841,2]
[365324259,1749600642711,-360.665013,0.0001841,2]
[365324261,1749600642721,-634.06,0.0001841,2]
[365324263,1749600642730,-490.0,0.0001841,2]
[365324265,1749600642740,-152.0,0.00018572,3]
[365324267,1749600642750,-634.06,0.00018575,2]
[365324269,1749600642760,-490.0,0.00018575,2]
[365324271,1749600642769,-151.0,0.00018631,2]
[365324273,1749600642779,-207.4,0.00018631,2]
[365324275,1749600642789,-13671.02566729,0.0001866,2]
[365324277,1749600642799,-634.06,0.00018739,2]
[365324279,1749600642808,-603.89,0.00018742,2]
[365324281,1749600642818,-210.97656669,0.00018775,2]
[365324283,1749600642827,-13671.02566728,0.00018798,2]
[365324285,1749600642837,-200.0,0.00018854,4]
[365324287,1749600642847,-360.665013,0.000189,2]
[365324289,1749600642857,-779.76,0.000189,2]
[365324291,1749600642866,-360.665013,0.000189,2]
[365324293,1749600642875,-634.06,0.00018904,2]
[365324295,1749600642885,-13671.02566728,0.00018936,2]
[365324297,1749600642896,-779.76,0.00019,2]
[365324299,1749600642906,-779.76,0.00019,2]
[365324301,1749600642915,-779.76,0.00019,2]
[365324303,1749600642924,-779.76,0.00019,2]
[365324305,1749600642934,-360.665013,0.00019,2]
[365324307,1749600642943,-360.665013,0.00019,2]
[365324309,1749600642952,-360.665013,0.00019,2]
[365324311,1749600642961,-360.665014,0.00019,2]
[365324313,1749600642971,-157.56782249,0.00019045,2]
[365324315,1749600642982,-634.06,0.00019068,2]
[365324317,1749600642992,-13671.02566728,0.00019073,2]
[365324319,1749600643003,-433.3572,0.00019078,2]
[365324321,1749600643014,-210.97656669,0.0001915,2]
[365324323,1749600643024,-215.13,0.00019168,2]
[365324325,1749600643034,-500.0,0.00019177,2]
[365324327,1749600643044,-500.0,0.00019178,2]
[365324329,1749600643054,-500.0,0.00019178,2]
[365324331,1749600643064,-500.0,0.00019178,2]
[365324355,1749600643260,-500.0,0.00019178,2]
[365324357,1749600643271,-500.0,0.00019178,2]
[365324360,1749600643280,-500.0,0.00019178,2]
[365324361,1749600643291,-500.0,0.00019178,2]
[365324363,1749600643301,-500.0,0.00019178,2]
[365324364,1749600643310,-500.0,0.00019178,2]
[365324365,1749600643319,-500.0,0.00019178,2]
[365324366,1749600643329,-500.0,0.00019178,2]
[365324367,1749600643339,-500.0,0.00019178,2]
[365324368,1749600643350,-500.0,0.00019178,2]
[365324369,1749600643359,-500.0,0.00019178,2]
[365324370,1749600643368,-500.0,0.00019178,2]
[365324371,1749600643377,-500.0,0.00019178,2]
[365324372,1749600643391,-500.0,0.00019178,2]
[365324373,1749600643401,-500.0,0.00019178,2]
[365324374,1749600643410,-500.0,0.00019178,2]
[365324375,1749600643420,-500.0,0.00019178,2]
[365324376,1749600643431,-500.0,0.00019178,2]
[365324377,1749600643442,-500.0,0.00019178,2]
[365324378,1749600643452,-500.0,0.00019178,2]
[365324379,1749600643461,-500.0,0.00019178,2]
[365324380,1749600643471,-500.0,0.00019178,2]
[365324381,1749600643480,-500.0,0.00019178,2]
[365324382,1749600643489,-500.0,0.00019178,2]
[365324383,1749600643498,-500.0,0.00019178,2]
[365324384,1749600643508,-442.57494088,0.00019178,2]
[365324385,1749600643517,-500.0,0.00019178,2]
[365324386,1749600643527,-500.0,0.00019178,2]
[365324387,1749600643536,-500.0,0.00019178,2]
[365324388,1749600643545,-644.25749409,0.00019178,2]
[365324389,1749600643555,-151.0,0.00019178,2]
[365324390,1749600643565,-1000.0,0.00019178,2]
[365324391,1749600643574,-1000.0,0.00019178,2]
[365324392,1749600643584,-1000.0,0.00019178,2]
[365324393,1749600643593,-1000.0,0.00019178,2]
[365324394,1749600643603,-1000.0,0.00019178,2]
[365324395,1749600643612,-1000.0,0.00019178,2]
[365324396,1749600643622,-1000.0,0.00019178,2]
[365324397,1749600643631,-1000.0,0.00019178,2]
[365324398,1749600643644,-1000.0,0.00019178,2]
[365324399,1749600643653,-1000.0,0.00019178,2]
[365324400,1749600643663,-1000.0,0.00019178,2]
[365324401,1749600643671,-1000.0,0.00019178,2]
[365324402,1749600643681,-1000.0,0.00019178,2]
[365324403,1749600643690,-1000.0,0.00019178,2]
[365324404,1749600643699,-1000.0,0.00019178,2]
[365324405,1749600643709,-1000.0,0.00019178,2]
[365324406,1749600643718,-1000.0,0.00019178,2]
[365324407,1749600643727,-1000.0,0.00019178,2]
[365324408,1749600643736,-1000.0,0.00019178,2]
[365324409,1749600643747,-1000.0,0.00019178,2]
[365324410,1749600643756,-1000.0,0.00019178,2]
[365324412,1749600643766,-1000.0,0.00019178,2]
[365324414,1749600643775,-1000.0,0.00019178,2]
[365324416,1749600643784,-1000.0,0.00019178,2]
[365324417,1749600643794,-1000.0,0.00019178,2]
[365324418,1749600643803,-1000.0,0.00019178,2]
[365324419,1749600643813,-1000.0,0.00019178,2]
[365324421,1749600643823,-1000.0,0.00019178,2]
[365324423,1749600643833,-1000.0,0.00019178,2]
[365324425,1749600643842,-1000.0,0.00019178,2]
[365324426,1749600643852,-1000.0,0.00019178,2]
[365324427,1749600643861,-1000.0,0.00019178,2]
[365324428,1749600643871,-1000.0,0.00019178,2]
[365324429,1749600643881,-1000.0,0.00019178,2]
[365324430,1749600643894,-1000.0,0.00019178,2]
[365324431,1749600643904,-1000.0,0.00019178,2]
[365324432,1749600643915,-1000.0,0.00019178,2]
[365324433,1749600643924,-1000.0,0.00019178,2]
[365324434,1749600643934,-1000.0,0.00019178,2]
[365324435,1749600643944,-1000.0,0.00019178,2]
[365324436,1749600643955,-869.0,0.00019178,2]
[365324437,1749600643965,-160.23,0.00019178,2]
[365324438,1749600643975,-13671.02566728,0.00019211,2]
[365324439,1749600643984,-634.06,0.00019232,2]
[365324440,1749600643994,-354.51,0.0001927,2]
[365324441,1749600644004,-709.02,0.0001927,2]
[365324442,1749600644013,-300.0,0.0001929,2]
[365324443,1749600644023,-326.55,0.0001929,2]
[365324444,1749600644033,-163.33,0.0001929,2]
[365324445,1749600644042,-163.33,0.0001929,2]
[365324446,1749600644051,-163.33,0.0001929,2]
[365324447,1749600644061,-157.56782249,0.0001933,2]
[365324448,1749600644071,-13671.02566728,0.00019349,2]
[365324449,1749600644080,-634.06,0.00019397,2]
[365324450,1749600644090,-225.0,0.00019419,2]
[365324451,1749600644100,-156.08806021,0.00019425,2]
[365324452,1749600644110,-3234.92224285,0.00019429,2]